[Event "Championnat du monde jeunes U12"]
[Date "2024.11.18"]
[White "Minga-Nagy, Abel Inti"]
[Black "Zhang, Haoxuan"]
[WhiteElo "2033"]
[BlackElo "1932"]
[Round "4.39"]
[Result "1/2-1/2"]
[TimeControl "5400+30"]

1. e4 {[%clk 1:30:53]} 1... c5 {[%clk 1:30:51]} 2. Nf3 {[%clk 1:31:17]} 2... e6
{[%clk 1:31:11]} 3. d4 {[%clk 1:31:37]} 3... cxd4 {[%clk 1:31:24]} 4. Nxd4
{[%clk 1:32:03]} 4... Nc6 {[%clk 1:31:37]} 5. Nc3 {[%clk 1:29:35]} 5... a6
{[%clk 1:31:06]} 6. g3 {[%clk 1:29:37]} 6... Qc7 {[%clk 1:30:57]} 7. Bg2 {[%clk
1:28:27]} 7... Nf6 {[%clk 1:30:41]} 8. O-O {[%clk 1:28:21]} 8... Nxd4 {[%clk
1:30:09]} 9. Qxd4 {[%clk 1:28:44]} 9... Bc5 {[%clk 1:30:31]} 10. Qd3 {[%clk
1:29:02]} 10... d6 {[%clk 1:29:47]} 11. Bf4 {[%clk 1:16:55]} 11... h6 {[%clk
1:28:22]} 12. Rad1 {[%clk 1:16:45]} 12... e5 {[%clk 1:28:48]} 13. Be3 {[%clk
1:17:10]} 13... Bb4 {[%clk 1:28:22]} 14. Nb5 {[%clk 1:15:03]} 14... axb5 {[%clk
1:24:50]} 15. Qxb5+ {[%clk 1:15:27]} 15... Nd7 {[%clk 1:15:26]} 16. Qxb4 {[%clk
1:15:48]} 16... Rxa2 {[%clk 1:15:53]} 17. Rxd6 {[%clk 1:15:14]} 17... O-O {[%clk
1:14:09]} 18. c3 {[%clk 1:10:00]} 18... Re8 {[%clk 1:05:51]} 19. Rfd1 {[%clk
1:06:12]} 19... Nf8 {[%clk 1:04:07]} 20. Bb6 {[%clk 1:05:34]} 20... Qb8 {[%clk
0:47:41]} 21. Qb3 {[%clk 1:03:48]} 21... Ra8 {[%clk 0:46:00]} 22. Qb5 {[%clk
0:57:38]} 22... Qxd6 {[%clk 0:41:37]} 23. Rxd6 {[%clk 0:57:29]} 23... Ra1+
{[%clk 0:42:01]} 24. Bf1 {[%clk 0:57:51]} 24... Bh3 {[%clk 0:42:27]} 25. Qe2
{[%clk 0:55:40]} 25... Rxf1+ {[%clk 0:42:31]} 26. Qxf1 {[%clk 0:56:07]} 26...
Bxf1 {[%clk 0:42:55]} 27. Kxf1 {[%clk 0:56:34]} 27... f6 {[%clk 0:39:39]} 28.
Rd8 {[%clk 0:55:59]} 28... Rxd8 {[%clk 0:40:02]} 29. Bxd8 {[%clk 0:56:25]} 29...
Ne6 {[%clk 0:40:27]} 30. Bb6 {[%clk 0:56:49]} 30... Ng5 {[%clk 0:40:50]} 31. Ke2
{[%clk 0:55:13]} 31... Nxe4 {[%clk 0:41:16]} 32. Kd3 {[%clk 0:55:33]} 32... Ng5
{[%clk 0:36:27]} 33. h4 {[%clk 0:50:42]} 33... Ne6 {[%clk 0:36:26]} 34. h5
{[%clk 0:50:05]} 34... Kf7 {[%clk 0:35:58]} 35. Ke4 {[%clk 0:49:29]} 35... Ke7
{[%clk 0:31:22]} 36. Kd5 {[%clk 0:47:39]} 36... Kd7 {[%clk 0:29:59]} 37. b4
{[%clk 0:46:55]} 37... Nf8 {[%clk 0:29:31]} 38. c4 {[%clk 0:46:11]} 38... g5
{[%clk 0:26:09]} 39. b5 {[%clk 0:44:35]} 39... Ne6 {[%clk 0:26:08]} 40. Ke4
{[%clk 0:23:24]} 40... Ng7 {[%clk 0:23:14]} 41. g4 {[%clk 0:23:23]} 41... Ke6
{[%clk 0:23:33]} 42. Bc5 {[%clk 0:21:27]} 42... f5+ {[%clk 0:23:03]} 43. gxf5+
{[%clk 0:21:50]} 43... Nxf5 {[%clk 0:23:30]} 44. Bf8 {[%clk 0:22:12]} 44... g4
{[%clk 0:19:28]} 45. c5 {[%clk 0:20:15]} 45... g3 {[%clk 0:19:03]} 46. fxg3
{[%clk 0:20:41]} 46... Nxg3+ {[%clk 0:19:29]} 47. Kf3 {[%clk 0:20:39]} 47...
Nxh5 {[%clk 0:19:41]} 48. Bxh6 {[%clk 0:20:59]} 48... Nf6 {[%clk 0:19:52]} 49.
Bg7 {[%clk 0:18:40]} 49... Nd7 {[%clk 0:20:14]} 50. c6 {[%clk 0:19:02]} 50...
bxc6 {[%clk 0:20:42]} 51. bxc6 {[%clk 0:19:27]} 51... Kd6 {[%clk 0:21:09]} 52.
Ke4 1/2-1/2

[Variant "Standard"]
[Site "Europe Echecs"]

[Event "Championnat du monde jeunes U12"]
[Date "2024.11.18"]
[White "Marchand, Calix"]
[Black "Padure, Dragos-Alexandru"]
[WhiteElo "2027"]
[BlackElo "1822"]
[Round "4.40"]
[Result "1-0"]
[TimeControl "5400+30"]

1. d4 {[%clk 1:30:57]} 1... Nf6 {[%clk 1:30:13]} 2. Nc3 {[%clk 1:31:19]} 2... d5
{[%clk 1:29:07]} 3. Bf4 {[%clk 1:31:43]} 3... c5 {[%clk 1:23:27]} 4. e4 {[%clk
1:31:06]} 4... Nxe4 {[%clk 1:12:38]} 5. Nxe4 {[%clk 1:31:11]} 5... dxe4 {[%clk
1:13:03]} 6. dxc5 {[%clk 1:31:30]} 6... Qa5+ {[%clk 1:11:29]} 7. c3 {[%clk
1:31:15]} 7... Qxc5 {[%clk 1:09:03]} 8. Qa4+ {[%clk 1:30:53]} 8... Nc6 {[%clk
1:05:10]} 9. Qxe4 {[%clk 1:30:59]} 9... Bf5 {[%clk 1:04:24]} 10. Qa4 {[%clk
1:28:54]} 10... g6 {[%clk 1:00:21]} 11. Nf3 {[%clk 1:21:50]} 11... Bg7 {[%clk
0:59:43]} 12. Rd1 {[%clk 1:22:18]} 12... O-O {[%clk 0:57:50]} 13. Be3 {[%clk
1:22:25]} 13... Qa5 {[%clk 0:57:25]} 14. Qxa5 {[%clk 1:22:50]} 14... Nxa5 {[%clk
0:57:52]} 15. Nd4 {[%clk 1:23:13]} 15... Bxd4 {[%clk 0:55:27]} 16. Bxd4 {[%clk
1:18:03]} 16... Rfd8 {[%clk 0:49:35]} 17. Be2 {[%clk 1:15:01]} 17... Nc6 {[%clk
0:45:45]} 18. Bc5 {[%clk 1:09:40]} 18... Rxd1+ {[%clk 0:35:53]} 19. Bxd1 {[%clk
1:08:45]} 19... Ne5 {[%clk 0:21:54]} 20. O-O {[%clk 1:06:00]} 20... e6 {[%clk
0:18:06]} 21. b3 {[%clk 1:00:21]} 21... a6 {[%clk 0:09:56]} 22. Bd4 {[%clk
0:57:30]} 22... Nc6 {[%clk 0:09:43]} 23. Bf6 {[%clk 0:57:18]} 23... e5 {[%clk
0:05:42]} 24. Be2 {[%clk 0:53:34]} 24... Re8 {[%clk 0:05:08]} 25. g4 {[%clk
0:52:42]} 25... Bc8 {[%clk 0:02:05]} 26. Rd1 {[%clk 0:51:15]} 26... h6 {[%clk
0:02:16]} 27. h4 {[%clk 0:50:43]} 27... e4 {[%clk 0:01:43]} 28. Kg2 {[%clk
0:47:52]} 28... Nb8 {[%clk 0:01:35]} 29. Kg3 {[%clk 0:45:10]} 29... Nd7 {[%clk
0:01:43]} 30. Bd4 {[%clk 0:45:39]} 30... f6 {[%clk 0:01:05]} 31. Bc4+ {[%clk
0:44:10]} 31... Kf8 {[%clk 0:00:51]} 32. g5 {[%clk 0:41:22]} 32... fxg5 {[%clk
0:00:43]} 33. hxg5 {[%clk 0:41:30]} 33... h5 {[%clk 0:01:12]} 34. Kf4 {[%clk
0:41:18]} 34... Re7 {[%clk 0:01:10]} 35. Bd5 {[%clk 0:40:43]} 35... b6 {[%clk
0:01:12]} 36. Bxe4 {[%clk 0:40:15]} 36... Kf7 {[%clk 0:01:40]} 37. Bd5+ {[%clk
0:39:45]} 37... Kf8 {[%clk 0:01:55]} 38. b4 {[%clk 0:39:37]} 38... Rh7 {[%clk
0:01:49]} 39. c4 {[%clk 0:39:05]} 39... h4 {[%clk 0:02:01]} 40. c5 {[%clk
0:39:12]} 40... bxc5 {[%clk 0:02:17]} 41. bxc5 {[%clk 0:39:27]} 41... h3 {[%clk
0:02:34]} 42. c6 {[%clk 0:39:15]} 42... Nb8 {[%clk 0:02:50]} 43. Bc5+ {[%clk
0:39:32]} 43... Kg7 {[%clk 0:02:19]} 44. Kg3 {[%clk 0:38:12]} 44... h2 {[%clk
0:02:36]} 45. Bg2 {[%clk 0:35:50]} 45... Rh5 {[%clk 0:02:47]} 46. Be3 {[%clk
0:34:13]} 46... Nxc6 47. Bxc6 {[%clk 0:34:30]} 47... Rh3+ {[%clk 0:02:09]} 48.
Kg2 {[%clk 0:33:17]} 48... Be6 {[%clk 0:02:26]} 49. a3 {[%clk 0:33:06]} 49...
Rh4 {[%clk 0:02:51]} 50. Kg3 {[%clk 0:32:16]} 50... Rg4+ {[%clk 0:02:46]} 51.
Kxh2 {[%clk 0:32:19]} 51... Rh4+ {[%clk 0:03:14]} 52. Kg3 {[%clk 0:32:26]} 52...
Rg4+ {[%clk 0:03:43]} 53. Kf3 {[%clk 0:32:11]} 53... Rc4 {[%clk 0:04:11]} 54.
Bd7 {[%clk 0:32:18]} 1-0

[Variant "Standard"]
[Site "Europe Echecs"]

[Event "Championnat du monde jeunes U12"]
[Date "2024.11.18"]
[White "Isakov, Amin"]
[Black "Guo, Ethan"]
[WhiteElo "1698"]
[BlackElo "2157"]
[Round "4.41"]
[Result "0-1"]
[TimeControl "5400+30"]

1. e4 {[%clk 1:30:56]} 1... c5 {[%clk 1:30:56]} 2. Nf3 {[%clk 1:31:20]} 2... d6
{[%clk 1:31:22]} 3. d4 {[%clk 1:31:42]} 3... cxd4 {[%clk 1:31:48]} 4. Nxd4
{[%clk 1:32:06]} 4... Nf6 {[%clk 1:32:12]} 5. Bd3 {[%clk 1:32:28]} 5... Nc6
{[%clk 1:32:33]} 6. Nxc6 {[%clk 1:32:40]} 6... bxc6 {[%clk 1:32:58]} 7. O-O
{[%clk 1:33:02]} 7... g6 {[%clk 1:31:20]} 8. Nc3 {[%clk 1:33:20]} 8... Bg7
{[%clk 1:31:28]} 9. h3 {[%clk 1:33:36]} 9... O-O {[%clk 1:31:08]} 10. Be3 {[%clk
1:33:47]} 10... d5 {[%clk 1:18:57]} 11. Bd4 {[%clk 1:20:38]} 11... Rb8 {[%clk
1:06:26]} 12. exd5 {[%clk 1:10:46]} 12... cxd5 {[%clk 0:57:59]} 13. Rb1 {[%clk
1:02:54]} 13... Qa5 {[%clk 0:52:06]} 14. Qe2 {[%clk 1:01:35]} 14... Be6 {[%clk
0:51:25]} 15. a3 {[%clk 0:34:38]} 15... Nh5 {[%clk 0:29:26]} 16. Bxg7 {[%clk
0:33:52]} 16... Nxg7 {[%clk 0:29:14]} 17. b4 {[%clk 0:29:04]} 17... Qc7 {[%clk
0:28:51]} 18. Na4 {[%clk 0:28:31]} 18... Bc8 {[%clk 0:24:43]} 19. Rfe1 {[%clk
0:27:27]} 19... Ne6 {[%clk 0:23:50]} 20. Qe5 {[%clk 0:24:51]} 20... Qxe5 {[%clk
0:21:23]} 21. Rxe5 {[%clk 0:25:11]} 21... Rd8 {[%clk 0:21:43]} 22. Rbe1 {[%clk
0:22:10]} 22... Bb7 {[%clk 0:21:27]} 23. Rf1 {[%clk 0:19:17]} 23... Bc6 {[%clk
0:20:54]} 24. Nc3 {[%clk 0:17:54]} 24... d4 {[%clk 0:19:58]} 25. Ne2 {[%clk
0:13:38]} 25... Bd5 {[%clk 0:19:40]} 26. Be4 {[%clk 0:09:37]} 26... Bxe4 {[%clk
0:18:27]} 27. Rxe4 {[%clk 0:09:59]} 27... Rbc8 {[%clk 0:18:50]} 28. Rc1 {[%clk
0:09:55]} 28... Rd6 {[%clk 0:18:23]} 29. f3 {[%clk 0:09:32]} 29... f6 {[%clk
0:16:24]} 30. Kf2 {[%clk 0:08:48]} 30... Kf7 {[%clk 0:16:35]} 31. c4 {[%clk
0:08:28]} 31... f5 {[%clk 0:15:27]} 32. Rh4 {[%clk 0:08:24]} 32... Kg7 {[%clk
0:14:50]} 33. c5 {[%clk 0:08:10]} 33... Rd5 {[%clk 0:14:34]} 34. Rd1 {[%clk
0:08:03]} 34... Rcd8 {[%clk 0:13:05]} 35. c6 {[%clk 0:03:05]} 35... g5 {[%clk
0:13:15]} 36. c7 {[%clk 0:03:26]} 36... gxh4 {[%clk 0:13:04]} 37. cxd8=Q {[%clk
0:03:45]} 37... Rxd8 {[%clk 0:13:30]} 38. Rd3 {[%clk 0:03:41]} 38... Kf6 {[%clk
0:13:49]} 39. f4 {[%clk 0:03:55]} 39... Rc8 {[%clk 0:13:08]} 40. Kf3 {[%clk
0:03:39]} 40... Rc4 {[%clk 0:13:21]} 41. Kf2 {[%clk 0:03:57]} 41... Kf7 {[%clk
0:13:21]} 42. Kf3 {[%clk 0:03:11]} 42... Ke8 {[%clk 0:13:31]} 43. Rd1 {[%clk
0:03:22]} 43... Kd7 {[%clk 0:13:40]} 44. Rc1 {[%clk 0:03:05]} 44... Rxc1 {[%clk
0:13:45]} 45. Nxc1 {[%clk 0:03:27]} 45... Kc6 {[%clk 0:14:10]} 0-1

[Variant "Standard"]
[Site "Europe Echecs"]

[Event "Championnat du monde jeunes U12"]
[Date "2024.11.18"]
[White "Teo, Hong Kai Javier"]
[Black "Nguyen, Khoi"]
[WhiteElo "1675"]
[BlackElo "1994"]
[Round "4.42"]
[Result "0-1"]
[TimeControl "5400+30"]

1. e4 {[%clk 1:30:34]} 1... c5 {[%clk 1:30:51]} 2. Nf3 {[%clk 1:30:41]} 2... a6
{[%clk 1:31:07]} 3. c3 {[%clk 1:30:36]} 3... d5 {[%clk 1:31:22]} 4. exd5 {[%clk
1:29:23]} 4... Qxd5 {[%clk 1:31:41]} 5. d4 {[%clk 1:29:41]} 5... e6 {[%clk
1:32:06]} 6. Bd3 {[%clk 1:27:31]} 6... Nf6 {[%clk 1:30:27]} 7. O-O {[%clk
1:23:36]} 7... Nc6 {[%clk 1:27:47]} 8. Be3 {[%clk 1:13:19]} 8... cxd4 {[%clk
1:23:01]} 9. cxd4 {[%clk 1:11:25]} 9... Be7 {[%clk 1:22:57]} 10. Nc3 {[%clk
1:09:46]} 10... Qd6 {[%clk 1:23:05]} 11. a3 {[%clk 1:05:21]} 11... O-O {[%clk
1:22:12]} 12. Rc1 {[%clk 0:59:12]} 12... Rd8 {[%clk 1:16:58]} 13. Qe2 {[%clk
0:49:21]} 13... Bd7 {[%clk 1:05:52]} 14. Rfd1 {[%clk 0:42:40]} 14... Be8 {[%clk
1:04:07]} 15. b4 {[%clk 0:34:55]} 15... Rac8 {[%clk 1:02:51]} 16. Na4 {[%clk
0:30:05]} 16... Nxd4 {[%clk 0:59:42]} 17. Bxh7+ {[%clk 0:23:43]} 17... Nxh7
{[%clk 0:51:43]} 18. Rxd4 {[%clk 0:22:47]} 18... Rxc1+ {[%clk 0:51:32]} 19. Bxc1
{[%clk 0:23:06]} 19... Qc7 {[%clk 0:50:09]} 20. Rxd8 {[%clk 0:20:26]} 20... Bxd8
{[%clk 0:47:46]} 21. Nc5 {[%clk 0:20:04]} 21... b6 {[%clk 0:48:00]} 22. Nd3
{[%clk 0:17:28]} 22... Bb5 {[%clk 0:47:43]} 23. Bb2 {[%clk 0:16:43]} 23... Qc4
{[%clk 0:34:41]} 24. Nfe1 {[%clk 0:13:08]} 24... Qd5 {[%clk 0:31:40]} 25. Qe5
{[%clk 0:09:13]} 25... Nf6 {[%clk 0:31:52]} 26. h4 {[%clk 0:07:12]} 26... Qxe5
{[%clk 0:30:10]} 27. Nxe5 {[%clk 0:07:04]} 27... Nd5 {[%clk 0:29:57]} 28. g3
{[%clk 0:06:02]} 28... f6 {[%clk 0:29:29]} 29. Ng6 {[%clk 0:05:23]} 29... Be8
{[%clk 0:27:03]} 30. h5 {[%clk 0:04:40]} 30... Bxg6 {[%clk 0:26:51]} 31. hxg6
{[%clk 0:05:03]} 31... Ne7 {[%clk 0:27:13]} 32. Nf3 {[%clk 0:04:01]} 32... Nxg6
{[%clk 0:27:02]} 33. Kf1 {[%clk 0:03:28]} 33... Kf7 {[%clk 0:26:29]} 34. Ke2
{[%clk 0:03:41]} 34... Ke7 {[%clk 0:26:41]} 35. Kd3 {[%clk 0:03:41]} 35... Kd6
{[%clk 0:26:25]} 36. Nd4 {[%clk 0:03:20]} 36... Ne5+ {[%clk 0:24:05]} 37. Kc3
{[%clk 0:02:54]} 37... b5 {[%clk 0:21:31]} 38. f4 {[%clk 0:00:38]} 38... Nc4
{[%clk 0:21:54]} 39. f5 {[%clk 0:00:48]} 39... e5 {[%clk 0:19:41]} 40. Ne6
{[%clk 0:01:05]} 40... Bb6 {[%clk 0:20:05]} 41. Bc1 {[%clk 0:01:21]} 41... g5
{[%clk 0:20:25]} 42. a4 {[%clk 0:01:12]} 42... Kd5 {[%clk 0:13:19]} 43. axb5
{[%clk 0:01:30]} 43... axb5 {[%clk 0:13:40]} 44. Kd3 {[%clk 0:01:09]} 44... e4+
{[%clk 0:11:48]} 45. Ke2 {[%clk 0:01:34]} 45... Nd6 {[%clk 0:11:14]} 46. g4
{[%clk 0:01:56]} 46... Nc4 {[%clk 0:11:03]} 47. Nf8 {[%clk 0:01:46]} 47... Ne5
{[%clk 0:10:59]} 48. Nh7 {[%clk 0:00:52]} 48... Nxg4 {[%clk 0:11:18]} 49. Bxg5
{[%clk 0:00:32]} 49... fxg5 {[%clk 0:11:37]} 50. f6 {[%clk 0:01:00]} 50... Nh6
{[%clk 0:06:19]} 51. Nxg5 {[%clk 0:01:18]} 51... Bd8 {[%clk 0:06:07]} 52. Ke3
{[%clk 0:00:48]} 52... Ng4+ {[%clk 0:06:29]} 53. Kf4 {[%clk 0:01:14]} 53... Nxf6
{[%clk 0:06:27]} 0-1

[Variant "Standard"]
[Site "Europe Echecs"]

[Event "Championnat du monde jeunes U12"]
[Date "2024.11.18"]
[White "El Zein, Bassam"]
[Black "Zhan, Jayden Zihan"]
[WhiteElo "1947"]
[BlackElo "1670"]
[Round "4.43"]
[Result "1-0"]
[TimeControl "5400+30"]

1. Nf3 {[%clk 1:30:58]} 1... c5 {[%clk 1:30:51]} 2. g3 {[%clk 1:31:21]} 2... Nc6
{[%clk 1:31:13]} 3. Bg2 {[%clk 1:31:42]} 3... e5 {[%clk 1:31:36]} 4. c4 {[%clk
1:32:07]} 4... g6 {[%clk 1:32:01]} 5. Nc3 {[%clk 1:32:31]} 5... Bg7 {[%clk
1:32:22]} 6. O-O {[%clk 1:32:56]} 6... Nge7 {[%clk 1:32:41]} 7. a3 {[%clk
1:33:21]} 7... d6 {[%clk 1:33:05]} 8. b4 {[%clk 1:33:45]} 8... O-O {[%clk
1:33:14]} 9. Rb1 {[%clk 1:33:51]} 9... f5 {[%clk 1:33:15]} 10. bxc5 {[%clk
1:33:25]} 10... dxc5 {[%clk 1:33:34]} 11. Na4 {[%clk 1:33:45]} 11... b6 {[%clk
1:31:48]} 12. d3 {[%clk 1:33:55]} 12... h6 {[%clk 1:30:12]} 13. Bb2 {[%clk
1:33:42]} 13... Rb8 {[%clk 1:27:55]} 14. Nc3 {[%clk 1:33:38]} 14... Be6 {[%clk
1:25:49]} 15. Qa4 {[%clk 1:33:03]} 15... Qd7 {[%clk 1:20:48]} 16. Nh4 {[%clk
1:31:40]} 16... Kh7 {[%clk 1:17:27]} 17. Rfd1 {[%clk 1:29:03]} 17... f4 {[%clk
1:15:21]} 18. Be4 {[%clk 1:28:52]} 18... Rbc8 {[%clk 1:10:54]} 19. Nd5 {[%clk
1:28:29]} 19... Nf5 {[%clk 1:06:46]} 20. Nxf5 {[%clk 1:27:35]} 20... Bxf5 {[%clk
1:05:50]} 21. Bg2 {[%clk 1:27:08]} 21... Bh3 {[%clk 1:03:51]} 22. Bf3 {[%clk
1:26:05]} 22... fxg3 {[%clk 1:03:00]} 23. hxg3 {[%clk 1:26:19]} 23... Rxf3
{[%clk 0:59:03]} 24. exf3 {[%clk 1:26:20]} 24... Qf5 {[%clk 0:57:12]} 25. Kh2
{[%clk 1:24:47]} 25... Qh5 {[%clk 0:53:48]} 26. Rh1 {[%clk 1:22:40]} 26... Nd4
{[%clk 0:46:56]} 27. Bxd4 {[%clk 1:21:38]} 27... Bd7+ {[%clk 0:44:48]} 28. Kg2
{[%clk 1:22:04]} 28... Qxh1+ {[%clk 0:44:52]} 29. Rxh1 {[%clk 1:21:50]} 29...
Bxa4 {[%clk 0:45:08]} 30. Be3 {[%clk 1:21:44]} 30... Bc2 {[%clk 0:44:08]} 31. f4
{[%clk 1:22:11]} 31... Bxd3 {[%clk 0:42:22]} 32. fxe5 {[%clk 1:22:33]} 32...
Bxc4 {[%clk 0:37:13]} 33. Nf6+ {[%clk 1:22:46]} 33... Bxf6 {[%clk 0:36:11]} 34.
exf6 {[%clk 1:23:14]} 34... h5 {[%clk 0:33:28]} 35. g4 {[%clk 1:23:40]} 35...
Re8 {[%clk 0:29:24]} 36. Rd1 {[%clk 1:23:29]} 36... Be6 {[%clk 0:21:48]} 37. g5
{[%clk 1:23:31]} 37... Kg8 {[%clk 0:20:36]} 38. a4 {[%clk 1:23:33]} 38... Rc8
{[%clk 0:16:43]} 39. Kg3 {[%clk 1:22:56]} 39... Kf7 {[%clk 0:13:44]} 40. a5
{[%clk 1:22:50]} 40... bxa5 {[%clk 0:10:37]} 41. Ra1 {[%clk 1:23:11]} 41... c4
{[%clk 0:10:33]} 42. Rxa5 {[%clk 1:23:37]} 42... Rc7 {[%clk 0:10:33]} 43. Bxa7
{[%clk 1:23:35]} 43... Kg8 {[%clk 0:08:42]} 44. Be3 {[%clk 1:22:50]} 44... Kh7
{[%clk 0:07:24]} 45. Ra8 {[%clk 1:21:46]} 45... Rf7 {[%clk 0:05:58]} 46. Bd4
{[%clk 1:21:31]} 46... Bg4 {[%clk 0:04:49]} 47. Be5 {[%clk 1:21:42]} 47... Rd7
{[%clk 0:03:47]} 48. Rh8+ {[%clk 1:21:46]} 1-0

[Variant "Standard"]
[Site "Europe Echecs"]

[Event "Championnat du monde jeunes U12"]
[Date "2024.11.18"]
[White "Dos Santos, Leonardo Lopes"]
[Black "Kraucenka, Justas"]
[WhiteElo "1930"]
[BlackElo "1650"]
[Round "4.44"]
[Result "0-1"]
[TimeControl "5400+30"]

1. e4 {[%clk 1:30:52]} 1... e6 {[%clk 1:30:59]} 2. d4 {[%clk 1:31:02]} 2... d5
{[%clk 1:31:25]} 3. exd5 {[%clk 1:31:28]} 3... exd5 {[%clk 1:31:51]} 4. Bd3
{[%clk 1:31:42]} 4... Bd6 {[%clk 1:32:18]} 5. Nf3 {[%clk 1:31:58]} 5... Ne7
{[%clk 1:32:41]} 6. O-O {[%clk 1:31:46]} 6... O-O {[%clk 1:33:00]} 7. Re1 {[%clk
1:32:04]} 7... Bf5 {[%clk 1:32:10]} 8. c3 {[%clk 1:28:46]} 8... c6 {[%clk
1:32:10]} 9. Bxf5 {[%clk 1:10:35]} 9... Nxf5 {[%clk 1:32:33]} 10. Qd3 {[%clk
1:10:20]} 10... Nh4 {[%clk 1:27:53]} 11. Nbd2 {[%clk 1:10:28]} 11... Ng6 {[%clk
1:26:45]} 12. Nf1 {[%clk 1:04:23]} 12... Nd7 {[%clk 1:20:46]} 13. Ng3 {[%clk
1:00:43]} 13... Qc7 {[%clk 1:12:42]} 14. Be3 {[%clk 0:56:33]} 14... Rfe8 {[%clk
1:08:39]} 15. Nf5 {[%clk 0:42:04]} 15... Nf6 {[%clk 1:05:13]} 16. Nxd6 {[%clk
0:36:41]} 16... Qxd6 {[%clk 1:05:39]} 17. Bd2 {[%clk 0:34:52]} 17... Ne4 {[%clk
1:01:51]} 18. c4 {[%clk 0:29:26]} 18... Nxd2 {[%clk 0:55:50]} 19. Nxd2 {[%clk
0:29:49]} 19... dxc4 {[%clk 0:56:12]} 20. Nxc4 {[%clk 0:27:21]} 20... Qb4 {[%clk
0:49:46]} 21. Qc3 {[%clk 0:25:24]} 21... Qxc3 {[%clk 0:43:12]} 22. bxc3 {[%clk
0:25:49]} 22... b6 {[%clk 0:42:31]} 23. Ne3 {[%clk 0:22:09]} 23... Re6 {[%clk
0:37:53]} 24. Kf1 {[%clk 0:18:01]} 24... Rae8 {[%clk 0:36:53]} 25. g3 {[%clk
0:16:32]} 25... Ne7 {[%clk 0:31:03]} 26. c4 {[%clk 0:10:48]} 26... Rd8 {[%clk
0:25:19]} 27. Rad1 {[%clk 0:09:41]} 27... Re4 {[%clk 0:14:55]} 28. f3 {[%clk
0:08:56]} 28... Re6 {[%clk 0:14:17]} 29. Rd3 {[%clk 0:05:28]} 29... Kf8 {[%clk
0:12:08]} 30. a4 {[%clk 0:05:13]} 30... Rf6 {[%clk 0:11:40]} 31. Kf2 {[%clk
0:03:09]} 31... Nf5 {[%clk 0:11:44]} 32. Nxf5 {[%clk 0:02:25]} 32... Rxf5 {[%clk
0:12:10]} 33. Re4 {[%clk 0:01:11]} 33... Ra5 {[%clk 0:12:16]} 34. Ra3 {[%clk
0:01:11]} 34... b5 {[%clk 0:12:07]} 35. cxb5 {[%clk 0:01:12]} 35... cxb5 {[%clk
0:12:22]} 36. Re5 {[%clk 0:00:44]} 36... Rxa4 {[%clk 0:11:22]} 37. Rxa4 {[%clk
0:00:40]} 37... bxa4 {[%clk 0:11:49]} 38. Ra5 {[%clk 0:00:33]} 38... Rxd4 {[%clk
0:12:12]} 39. Rxa7 {[%clk 0:00:56]} 39... Rd2+ {[%clk 0:12:38]} 40. Ke3 {[%clk
0:01:17]} 40... Ra2 {[%clk 0:12:36]} 41. Kf4 {[%clk 0:01:21]} 41... g6 {[%clk
0:12:42]} 42. g4 {[%clk 0:00:47]} 42... Kg7 {[%clk 0:12:40]} 43. g5 {[%clk
0:00:59]} 43... Rxh2 {[%clk 0:13:03]} 44. Kg3 {[%clk 0:01:13]} 44... Ra2 {[%clk
0:13:22]} 45. f4 {[%clk 0:00:56]} 45... Ra1 {[%clk 0:13:34]} 46. Kg2 {[%clk
0:01:19]} 46... a3 {[%clk 0:13:01]} 47. Kh2 {[%clk 0:01:40]} 47... a2 {[%clk
0:12:47]} 48. Kg2 {[%clk 0:02:00]} 48... h6 {[%clk 0:12:54]} 49. Kh2 {[%clk
0:02:23]} 49... Rf1 {[%clk 0:12:56]} 50. Rxa2 {[%clk 0:02:44]} 50... Rxf4 {[%clk
0:13:22]} 51. gxh6+ {[%clk 0:03:07]} 51... Kxh6 {[%clk 0:13:47]} 52. Kg3 {[%clk
0:03:28]} 52... Rb4 {[%clk 0:14:07]} 53. Ra5 {[%clk 0:03:42]} 53... f5 {[%clk
0:14:28]} 54. Rc5 {[%clk 0:04:01]} 54... Rb3+ {[%clk 0:14:33]} 55. Kf4 {[%clk
0:04:14]} 55... Rb4+ {[%clk 0:14:45]} 56. Kg3 {[%clk 0:04:37]} 56... Kg5 {[%clk
0:15:04]} 57. Rc3 {[%clk 0:04:55]} 57... Re4 {[%clk 0:14:46]} 58. Rc6 {[%clk
0:04:55]} 58... f4+ {[%clk 0:13:59]} 59. Kf3 {[%clk 0:05:18]} 59... Re3+ {[%clk
0:14:17]} 60. Kf2 {[%clk 0:05:45]} 60... Kf5 {[%clk 0:14:32]} 61. Rc5+ {[%clk
0:06:09]} 61... Re5 {[%clk 0:14:46]} 62. Rc8 {[%clk 0:06:32]} 62... g5 {[%clk
0:15:04]} 63. Kf3 {[%clk 0:06:55]} 63... Re3+ {[%clk 0:15:21]} 64. Kf2 {[%clk
0:07:20]} 64... Kg4 {[%clk 0:15:41]} 65. Rg8 {[%clk 0:07:39]} 65... Re5 {[%clk
0:15:36]} 66. Rf8 {[%clk 0:07:53]} 66... Ra5 {[%clk 0:15:19]} 67. Rb8 {[%clk
0:07:44]} 67... Ra2+ {[%clk 0:15:40]} 68. Kg1 {[%clk 0:08:05]} 68... Kg3 {[%clk
0:16:01]} 69. Rb3+ {[%clk 0:08:27]} 69... f3 {[%clk 0:16:26]} 70. Rb1 {[%clk
0:08:46]} 70... g4 {[%clk 0:16:30]} 71. Rc1 {[%clk 0:09:06]} 71... Ra3 {[%clk
0:16:23]} 72. Rd1 {[%clk 0:08:59]} 72... f2+ {[%clk 0:16:30]} 73. Kf1 {[%clk
0:09:25]} 73... Re3 {[%clk 0:16:48]} 0-1

[Variant "Standard"]
[Site "Europe Echecs"]